Cogmind - Beta 16 @@@ ROGUE MODE // 2025.12.20 @ 16:50:59 Player: TheGamingJasper Result: Self-destructed Performance ------------- Evolutions (1) 500 Regions Visited (2) 400 Robots Destroyed (9) 45 Value Destroyed (137) 137 Prototype IDs (0) 0 Alien Tech Used (0) 0 Bonus (0) 0 TOTAL SCORE: 1082 Bonus ------- None Cogmind --------- Core Integrity 375/400 Matter 280/300 Energy 159/160 System Corruption 0% Temperature Cool (2) Movement Flying (37) Location -9/Materials Parts ------- > --- POWER (1) -------- Light Nuclear Core > --- PROPULSION (4) --- Flight Unit Flight Unit > --- UTILITY (2) ------ Visual Processing Unit Sensor Array > --- WEAPON (2) ------- Light Assault Rifle > --- INVENTORY (5) ---- Signal Interpreter Terrain Scanner Terrain Scanner Peak State ------------ > --- POWER ------------ Light Nuclear Core > --- PROPULSION ------- Flight Unit Flight Unit Flight Unit Flight Unit > --- UTILITY ---------- Visual Processing Unit Terrain Scanner > --- WEAPON ----------- Light Assault Rifle > --- INVENTORY -------- Sensor Array Signal Interpreter Terrain Scanner [Rating: 11] Favorites ----------- Power Ion Engine Engine Ion Engine Power Core Light Nuclear Core Propulsion Aluminum Leg Leg Aluminum Leg Flight Unit Flight Unit Utility Terrain Scanner Device Terrain Scanner Storage Small Storage Unit Processor Visual Processing Unit Weapon Assault Rifle Ballistic Gun Assault Rifle Build | -11 -10 -9 ------- Run | Yrd Mat Mat Slots Evolved 2 | . . 2 Power . | . . . Propulsion 2 | . . 2 Utility . | . . . Weapon . | . . . Parts Attached 15 | 6 6 3 Power 2 | 1 1 . Engine 1 | 1 . . Core 1 | . 1 . Reactor . | . . . Propulsion 6 | 2 2 2 Treads . | . . . Leg 2 | 2 . . Wheel . | . . . Hover . | . . . Flight 4 | . 2 2 Utility 4 | 1 2 1 Device 2 | . 1 1 Storage 1 | 1 . . Processor 1 | . 1 . Hackware . | . . . Protection . | . . . Artifact . | . . . Weapon 3 | 2 1 . Energy Gun . | . . . Energy Cannon . | . . . Ballistic Gun 3 | 2 1 . Ballistic Cannon . | . . . Launcher . | . . . Special Weapon . | . . . Impact Weapon . | . . . Slashing Weapon . | . . . Piercing Weapon . | . . . Special Melee Weapon . | . . . Unidentified Prototypes . | . . . Parts Lost 2 | . . 2 Power . | . . . Propulsion 2 | . . 2 Utility . | . . . Weapon . | . . . Highest Loss Streak 2 | . . 2 To Critical Strikes . | . . . Average Backups 4 | . 5 3 Power 1 | . 1 . Propulsion . | . . . Utility 2 | . 2 3 Weapon . | . . . Tool/Special . | . . . Unused Backups 5 | . 3 2 Power 1 | . 1 . Propulsion 1 | . 1 . Utility 3 | . 1 2 Weapon . | . . . Tool/Special . | . . . Average Slot Usage (%) 93 | . 94 86 Engine 10 | . 12 . Core 3 | . 2 11 Leg 19 | . 22 . Flight 10 | . 4 42 Device 11 | . 12 11 Storage 10 | . 12 . Processor 3 | . 2 11 Ballistic Gun 23 | . 25 11 Peak Build Rating 11 | 6 9 11 Average Rating 7 | 3 7 10 On Entrance 5 | . 6 9 Avg Prop Armor Cover (%) . | . . . Naked Turns . | . . . Heaviest Build 15 | 14 15 7 Greatest Support 20 | 20 20 16 Greatest Overweight (x) 4 | . 4 . Average Overweight (x) . | . . . Largest Inventory Capacity 8 | 8 8 5 Average Capacity 6 | 5 7 5 Most Carried 8 | 3 8 4 Average Carried 4 | 1 5 3 Final Capacity 8 | 8 5 5 Final Carried 5 | 1 5 3 Class Distribution -------------------- 89% | Mutant 10% | Sprinter Dominant Class ---------------- Mutant | -10/Materials Sprinter | -9/Materials Resources | -11 -10 -9 ----------- Run | Yrd Mat Mat Matter Collected 492 | 213 279 . Remotely . | . . . Salvage Created 314 | . 314 . Parts 21 | . 21 . Haulers Intercepted 2 | . 2 . Recyclers Shooed 1 | . 1 . Parts Field Recycled . | . . . Retrieved Matter . | . . . Parts Self-Destructed . | . . . Prevented . | . . . Parts Restored . | . . . Kills | -11 -10 -9 ------- Run | Yrd Mat Mat Combat Hostiles Destroyed 5 | . 5 . Guns 5 | . 5 . Classes Destroyed 5 | . 5 . Hauler 2 | . 2 . Recycler 1 | . 1 . Watcher 1 | . 1 . Swarmer 3 | . 3 . Grunt 2 | . 2 . Best Kill Streak 4 | . 4 . Combat Bots Only 3 | . 3 . Max Kills in Single Turn 1 | . 1 . Gunslinging . | . . . Exploded . | . . . Melee . | . . . Uniques/NPCs Destroyed . | . . . Combat | -11 -10 -9 -------- Run | Yrd Mat Mat Hostile Shots Fired 34 | . 21 13 Missed 11 | . 5 6 Hits 23 | . 16 7 Projectile 23 | . 16 7 Critical Strikes 1 | . 1 . Damage Taken 251 | . 169 82 Core 48 | . 23 25 Absorbed by Shields . | . . . Core Remaining (%) 95 | 100 90 . Volleys Fired 23 | . 23 . Largest 2 | . 2 . Hottest 40 | . 40 . Shots Fired 43 | . 43 . Gun 43 | . 43 . Cannon . | . . . Launcher . | . . . Special . | . . . Kinetic 43 | . 43 . Thermal . | . . . Explosive . | . . . Electromagnetic . | . . . Robot Hit Streak 8 | . 8 . Robot Miss Streak 5 | . 5 . Penetration Max . | . . . Secondary Targets . | . . . Shots Hit Robots 25 | . 25 . Core Hits 13 | . 13 . Critical Kills . | . . . Critical Parts Destroyed . | . . . Critical Strikes . | . . . Melee Attacks . | . . . Impact . | . . . Slashing . | . . . Piercing . | . . . Sneak Attacks . | . . . Combat Hostiles . | . . . Follow-up Attacks . | . . . Damage Inflicted 318 | . 318 . Guns 318 | . 318 . Cannons . | . . . Explosions . | . . . Melee . | . . . Ramming . | . . . Kinetic 318 | . 318 . Thermal . | . . . Explosive . | . . . Electromagnetic . | . . . Impact . | . . . Slashing . | . . . Piercing . | . . . Highest Corruption . | . . . Average Corruption . | . . . Corruption Purged . | . . . Corruption Blocked . | . . . Overload Shots . | . . . Overflow Damage . | . . . Projectiles . | . . . Explosions . | . . . Melee . | . . . Knockbacks . | . . . Impact . | . . . Kinetic . | . . . Secondary . | . . . Self-Inflicted Damage . | . . . Shots . | . . . Rammed . | . . . Targets Rammed . | . . . Kicked . | . . . Crushed . | . . . Highest Temperature 8 | . 8 8 Average Temperature 3 | . 3 4 Received Heat Transfer 69 | . 45 24 Siege Activations . | . . . Martial Activations . | . . . Shielding Activations . | . . . Robots Disrupted . | . . . Combat Hostiles . | . . . Robots Corrupted . | . . . Combat Hostiles . | . . . Parts Fried . | . . . Impact Corruptions . | . . . Robots Melted . | . . . Combat Hostiles . | . . . Parts Melted . | . . . Heat Transferred . | . . . Parts Sabotaged . | . . . Parts Stolen . | . . . Parts Stripped . | . . . Power Chain Reactions . | . . . Alert | -11 -10 -9 ------- Run | Yrd Mat Mat Maximum Alert Level . | . . . Low Security (%) 100 | 100 100 100 Level 1 . | . . . Level 2 . | . . . Level 3 . | . . . Level 4 . | . . . Level 5 . | . . . High Security . | . . . Max Security . | . . . Peak Influence 116 | . 116 52 Initial 27 | . . 27 Average 44 | . 55 18 Influence Increases 231 | . 186 45 Destroy 0b10 Robot/C 100 | . 100 . Destroy 0b10 Robot/NC 20 | . 20 . Destroy Leader 26 | . 26 . Successful Hack 9 | . 9 . Destroy Structure 1 | . 1 . Lose Combat Pursuer 75 | . 30 45 Influence Decreases 199 | . 120 79 Entered New Map 39 | . . 39 Time Decay 140 | . 120 20 Lost Part 20 | . . 20 Squads Dispatched 3 | . . 3 Investigation . | . . . Extermination . | . . . Reinforcement 3 | . . 3 Assault . | . . . Garrison . | . . . Intercept . | . . . Searches Triggered . | . . . Construction Impeded . | . . . Haulers Reinforced . | . . . Active Scanning Responses . | . . . Cargo Convoy Interrupts . | . . . Stealth | -11 -10 -9 --------- Run | Yrd Mat Mat Distress Signals 2 | . 1 1 Communications Jammed . | . . . Distress Signals . | . . . Times Spotted 25 | . 12 13 Peak Tracking Total 14 | . 4 14 Tactical Retreats 2 | . 1 1 Traps | -11 -10 -9 ------- Run | Yrd Mat Mat Traps Triggered . | . . . Indirectly . | . . . Trap Hack Attempts . | . . . Triggered . | . . . Disarmed . | . . . Reprogrammed . | . . . Reused . | . . . Traps Extracted . | . . . Installed . | . . . Triggered . | . . . Machines | -11 -10 -9 ---------- Run | Yrd Mat Mat Machines Disabled . | . . . Max in Single Turn . | . . . Machines Repaired . | . . . Machines Dismantled . | . . . Machines Sabotaged . | . . . Overloaded Fab Kills . | . . . Hacking | -11 -10 -9 --------- Run | Yrd Mat Mat Machines Accessed 2 | . 1 1 Terminals 2 | . 1 1 Fabricators . | . . . Repair Stations . | . . . Recycling Units . | . . . Scanalyzers . | . . . Garrison Access . | . . . Total Hacks 4 | . 2 2 Successful 1 | . 1 . Failed 3 | . 1 2 Catastrophic 2 | . 1 1 Database Lockouts . | . . . Manual 2 | . 2 . Terminals 4 | . 2 2 Fabricators . | . . . Repair Stations . | . . . Recycling Units . | . . . Scanalyzers . | . . . Garrison Access . | . . . Terminal Hacks 1 | . 1 . Level Access Points 1 | . 1 . Fabricator Hacks . | . . . Repair Station Hacks . | . . . Recycling Unit Hacks . | . . . Scanalyzer . | . . . Garrison Access Hacks . | . . . Unauthorized Hacks . | . . . Terminals . | . . . Fabricators . | . . . Repair Stations . | . . . Recycling Units . | . . . Scanalyzers . | . . . Garrison Access . | . . . Data Cores Recovered . | . . . Used . | . . . Hacking Detections 1 | . . 1 Full Trace Events . | . . . Feedback Events . | . . . Feedback Blocked . | . . . Robot Schematics Acquired . | . . . Robots Built . | . . . Authchips . | . . . Time . | . . . Total Robot Build Rating . | . . . Part Schematics Acquired . | . . . Parts Built . | . . . Authchips . | . . . Time . | . . . Total Part Build Rating . | . . . Part Studies Acquired . | . . . Parts Repaired . | . . . Time . | . . . Parts Recycled . | . . . Recycled Matter . | . . . Retrieved Matter . | . . . Retrieved Components . | . . . Parts Scanalyzed . | . . . Part Schematics Acquired . | . . . Parts Damaged . | . . . Bothacking | -11 -10 -9 ------------ Run | Yrd Mat Mat Used RIF Installer . | . . . Robots Hacked . | . . . Non-combat . | . . . Combat . | . . . Robot Hacks Applied . | . . . Relay Couplers Released . | . . . Fabnet Peak Effective % . | . . . Robots Rewired . | . . . Allies Hacked . | . . . Hacks Repelled . | . . . Allies | -11 -10 -9 -------- Run | Yrd Mat Mat Total Allies . | . . . Largest Group . | . . . Highest-Rated Group . | . . . Highest-Rated Ally . | . . . Total Orders . | . . . Ally Attacks . | . . . Total Damage . | . . . Kills . | . . . Allies Corrupted . | . . . Allies Melted . | . . . Intel | -11 -10 -9 ------- Run | Yrd Mat Mat Active Infowar (turns) 350 | . 292 58 Optics 103 | . 45 58 Sensors 56 | . . 56 Terrain 294 | . 292 2 Robot Analysis Total . | . . . Derelict Logs Recovered . | . . . Drone Launches . | . . . Drone Recoveries . | . . . Exploration | -11 -10 -9 ------------- Run | Yrd Mat Mat Turns Passed 448 | 55 335 58 Spaces Moved 439 | 38 245 156 Core 8 | 5 3 . Treads . | . . . Legs 170 | 33 137 . Wheels . | . . . Hover . | . . . Flight 261 | . 105 156 Fastest Speed 31 | 50 37 31 Average Speed 69 | 110 87 31 Slowest Speed 280 | 120 280 37 Overloaded Moves . | . . . Propulsion Burnouts . | . . . Robots Hopped 7 | . 2 5 Potential Cave-ins . | . . . Cave-ins Triggered . | . . . Exploration Rate (%) 25 | 3 50 24 Regions Visited 2 Branch Regions . Pre-discovered Areas . | . . . Known Exits Taken 1 | . 1 . Unknown Exits Taken 1 | 1 . . Scrap Searched . | . . . Spaces Dug . | . . . Terrain Destroyed . | . . . Melee . | . . . Projectile . | . . . AOE . | . . . Terrain Rammed . | . . . Walls Destroyed . | . . . Machines Disabled . | . . . Actions | -11 -10 -9 --------- Run | Yrd Mat Mat Total 535 | 51 324 160 Wait 40 | 1 33 6 Move 424 | 37 240 147 Hop 6 | . 2 4 Pick Up 18 | 7 11 . Fast Attach 2 | . 2 . Attach 10 | 6 2 2 Detach . | . . . Swap 3 | . 2 1 Drop 9 | . 9 . Fire 23 | . 23 . Melee . | . . . Ram . | . . . Kick . | . . . Crush . | . . . Escape Stasis . | . . . Rewire . | . . . Trap . | . . . Miscellaneous . | . . . Route ------- -11/Scrapyard -10/Materials (discovered 3 exits: *Mat x3) -9/Materials History --------- Turn | Location | Event 4 | -11/Scrapyard | Discovered new exit (range 15) 56 | -11/Scrapyard | Entered Materials 310 | -10/Materials | Build established: Mutant 361 | -10/Materials | Identified exit to Materials 391 | -10/Materials | Entered another Materials area 391 | -9/Materials | Evolved 2 slots: Propulsion x2 449 | -9/Materials | Self-destructed Last Messages --------------- A-02 Transporter destroyed. Acquired 4 matter. PARAMETERS=PROPULSION+2 LOCATION=MATERIALS GOAL=ESCAPE Connecting with Terminal... ALERT: Hostiles spotted, dispatching reinforcements to Terminal M012. O-16 Technician: "IFF HANDSHAKE FAILED. SECURING TERMINAL." O-16 Technician sends out distress signal. O-16 Technician: "IFF HANDSHAKE FAILED. SECURING TERMINAL." ALERT: Hostiles spotted, dispatching reinforcements to Terminal M005. K-01 Serf collects debris. ALERT: Hostiles spotted, dispatching reinforcements to Terminal M004. K-01 Serf collects debris. Flight Unit destroyed. Map ----- +----------------------------------------------------+ | ?????????????????####??? ##?? | | ????????????????? ??? ??? | | ?????????????????" ??? ??? | | ?????????????????" ?? ??? | | ?????????????????? ??? ??? | | ??#######????????? ??? #??? | | ??? #????????? ""??# #??? | | "S #????????? T??# #??? | | """ #????????? ""??# Y#??? | | "" #????????? ??# #??? | | ###########/#??# #??? | | """ ## # #??# #??? | | """ ## """ # #### #??? | | """ ## "R" / ? #??? | | ?? ??# " " # #??? | | ####+##### ###### #??? | | + """ #????# #??? | | #### """ #????#gg#??? | | #??# """ #????# #??? | | ### #??# #????# #??? | | ??# #??##########????# #??? | | ??# #??????????####### #??? | | ??# #??????????# # #??? | | ??# #??????????# = # #??? | | ??# #??????????# # #??? | | ??# #??????????# ?#s@#??? | | ??+ #??????????# """ # #??? | | ??# #??????????# """ #s #??? | | ??# #??????????# """ s #??? | | ??# #??????????# """ # #??? | | ??# ??????????# """ ####??? | | ??# ??????????# #?????? | | ??? ??????????# #?????? | | ???###???????????#######?????? | | ?????????????????????????????? | | ?????????????????????????????? | | ?????????????????????????????? | | ?????????????????????????????? | | ?????????????????????????????? | | ?????????????????????????????? | | ?????????????????????????????? | | ?????????????????????????????? | | ?????????????????????????????? | | ?????????????????????????????? | | ?????????????????????????????? | | ?????????????????????????????? | | ?????????????????????????????? | | ?????????????????????????????? | | ?????????????????????????????? | | ?????????????????????????????? | +----------------------------------------------------+ Best States ------------- Heat Dissipation 28 Energy Generation 14 Energy Capacity 250 Matter Stores 300 Matter Capacity 300 Sight Range 18 Robot Scan Range 14 Terrain Scan Range 14 Terrain Scan Density 10 Evasion (%) 63 Item Schematics ----------------- None Robot Schematics ------------------ None Fabricated ------------ Nothing Repaired ---------- Nothing Studied --------- None Alien Tech Used ----------------- None Achievements -------------- None Challenges ------------ None Game ------ Seed PitchforkOvertunedNanosword Manual? 0 Play Time 00:08:46 Cumulative 24.4 hours Start 2025.12.20 @ 16:43:44 End 2025.12.20 @ 16:50:59 Sessions 1 Manual Loads 0 Difficulty Rogue Special Mode None Game No. 44 Rogue 43 Adventurer 1 Explorer 0 Win Type - Total 0 Types 0/0/0/0/0/0/0/0/0/0 Lore% 6 Gallery% 25 Achievement% 18 Wizard Run 0 Options --------- Layout 1 ASCII 0 Keyboard 0 Movement Arrows Keybinds 0 Fullscreen 1 Font 24/Smallcaps Map View 50x35 Zoom Use 0% Tactical HUD 0 Map Filters NONE Filters NONE Steam 1 RUN: 98253b12-6cb3-41b0-a95c-89107f004e94